[Event "Sunway Sitges Chess Festival"]
[Date "2024.12.21"]
[White "Vetokhin, Savva"]
[Black "Alinasab, Mobina"]
[WhiteElo "2502"]
[BlackElo "2330"]
[Round "3.5"]
[Result "1-0"]
[TimeControl "40/5400+30:1800+30"]

1. d4 {[%clk 1:30:57]} 1... Nf6 {[%clk 1:30:45]} 2. c4 {[%clk 1:31:16]} 2... e6
{[%clk 1:30:47]} 3. Nc3 {[%clk 1:31:39]} 3... Bb4 {[%clk 1:30:43]} 4. e3 {[%clk
1:32:00]} 4... c5 {[%clk 1:29:46]} 5. Nf3 {[%clk 1:31:14]} 5... Nc6 {[%clk
1:28:53]} 6. Bd3 {[%clk 1:31:10]} 6... O-O {[%clk 1:28:49]} 7. dxc5 {[%clk
1:30:58]} 7... Bxc3+ {[%clk 1:23:07]} 8. bxc3 {[%clk 1:31:01]} 8... Qa5 {[%clk
1:23:31]} 9. Qb3 {[%clk 1:27:36]} 9... b6 {[%clk 1:22:58]} 10. cxb6 {[%clk
1:23:50]} 10... axb6 {[%clk 1:16:01]} 11. a4 {[%clk 1:20:50]} 11... Ba6 {[%clk
1:15:38]} 12. Ba3 {[%clk 1:18:05]} 12... Rfc8 {[%clk 1:15:47]} 13. Bd6 {[%clk
1:07:46]} 13... Ne8 {[%clk 0:47:02]} 14. Bg3 {[%clk 1:03:21]} 14... Qc5 {[%clk
0:44:12]} 15. O-O {[%clk 0:55:58]} 15... Na5 {[%clk 0:41:29]} 16. Qc2 {[%clk
0:51:35]} 16... Nf6 {[%clk 0:34:56]} 17. Be5 {[%clk 0:49:58]} 17... Bxc4 {[%clk
0:34:42]} 18. Bxf6 {[%clk 0:47:46]} 18... Bxd3 {[%clk 0:34:32]} 19. Qxd3 {[%clk
0:48:10]} 19... gxf6 {[%clk 0:34:57]} 20. Qxd7 {[%clk 0:47:07]} 20... Rd8 {[%clk
0:26:24]} 21. Qb5 {[%clk 0:47:30]} 21... Qxb5 {[%clk 0:26:48]} 22. axb5 {[%clk
0:47:55]} 22... Rac8 {[%clk 0:27:10]} 23. Ra3 {[%clk 0:43:38]} 23... Nc4 {[%clk
0:11:53]} 24. Ra6 {[%clk 0:42:09]} 24... Nd2 {[%clk 0:11:23]} 25. Rc1 {[%clk
0:41:58]} 25... Nb3 {[%clk 0:08:00]} 26. Re1 {[%clk 0:37:21]} 26... Rd6 {[%clk
0:01:46]} 27. Nd4 {[%clk 0:28:36]} 27... Nxd4 {[%clk 0:02:07]} 28. cxd4 {[%clk
0:28:54]} 28... Rc2 {[%clk 0:02:33]} 29. h3 {[%clk 0:22:20]} 29... Rb2 {[%clk
0:02:15]} 30. Rc1 {[%clk 0:22:36]} 30... Rxb5 {[%clk 0:01:56]} 31. Ra8+ {[%clk
0:21:53]} 31... Kg7 {[%clk 0:02:21]} 32. Rc7 {[%clk 0:22:19]} 32... e5 {[%clk
0:00:53]} 33. Raa7 {[%clk 0:18:24]} 33... exd4 {[%clk 0:01:12]} 34. Rxf7+ {[%clk
0:17:39]} 34... Kg6 {[%clk 0:00:56]} 35. g4 {[%clk 0:18:04]} 35... f5 {[%clk
0:00:59]} 36. Rg7+ {[%clk 0:14:33]} 36... Kf6 {[%clk 0:01:15]} 37. g5+ {[%clk
0:14:40]} 37... Ke5 {[%clk 0:00:39]} 38. Rae7+ {[%clk 0:15:02]} 38... Kd5 {[%clk
0:00:34]} 39. exd4 {[%clk 0:15:28]} 39... Kxd4 {[%clk 0:00:36]} 40. Rxh7 {[%clk
0:45:54]} 40... f4 {[%clk 0:30:36]} 41. h4 {[%clk 0:46:02]} 41... Re5 {[%clk
0:12:56]} 42. Rxe5 {[%clk 0:45:52]} 42... Kxe5 {[%clk 0:13:20]} 43. Rf7 {[%clk
0:44:59]} 43... b5 {[%clk 0:11:24]} 44. h5 {[%clk 0:41:21]} 44... b4 {[%clk
0:03:09]} 45. g6 {[%clk 0:40:50]} 45... b3 {[%clk 0:01:53]} 46. g7 {[%clk
0:41:15]} 46... b2 {[%clk 0:01:50]} 47. Rb7 {[%clk 0:40:48]} 47... Rd8 {[%clk
0:01:33]} 48. h6 {[%clk 0:41:05]} 48... Kf6 {[%clk 0:02:00]} 49. Rxb2 {[%clk
0:41:28]} 49... Kg6 {[%clk 0:02:11]} 50. Rb6+ {[%clk 0:41:53]} 50... Kf7 {[%clk
0:02:04]} 51. Kg2 {[%clk 0:42:16]} 51... Rc8 {[%clk 0:01:53]} 52. Kf3 {[%clk
0:42:39]} 52... Ra8 {[%clk 0:02:09]} 53. Rb7+ {[%clk 0:43:04]} 53... Kg8 {[%clk
0:01:54]} 54. Rb5 {[%clk 0:43:28]} 54... Kh7 {[%clk 0:02:06]} 55. Rb6 {[%clk
0:43:53]} 55... Ra3+ {[%clk 0:02:02]} 56. Kg4 {[%clk 0:44:18]} 56... Ra8 {[%clk
0:01:53]} 57. Rf6 {[%clk 0:44:41]} 1-0

[Variant "Standard"]
[Site "Europe Echecs"]

[Event "Sunway Sitges Chess Festival"]
[Date "2024.12.21"]
[White "Shamatava, Nikolozi"]
[Black "Velten, Paul"]
[WhiteElo "2334"]
[BlackElo "2501"]
[Round "3.6"]
[Result "1-0"]
[TimeControl "40/5400+30:1800+30"]

1. e4 {[%clk 1:30:56]} 1... c5 {[%clk 1:30:26]} 2. Nf3 {[%clk 1:31:10]} 2... d6
{[%clk 1:29:57]} 3. d4 {[%clk 1:31:26]} 3... cxd4 {[%clk 1:30:07]} 4. Nxd4
{[%clk 1:31:48]} 4... Nf6 {[%clk 1:30:19]} 5. Nc3 {[%clk 1:32:09]} 5... a6
{[%clk 1:28:49]} 6. a3 {[%clk 1:32:21]} 6... Nc6 {[%clk 1:26:36]} 7. Be2 {[%clk
1:23:38]} 7... g6 {[%clk 1:24:33]} 8. Be3 {[%clk 1:21:58]} 8... Bg7 {[%clk
1:24:21]} 9. Qd2 {[%clk 1:16:15]} 9... Ng4 {[%clk 1:22:05]} 10. Nxc6 {[%clk
1:16:23]} 10... bxc6 {[%clk 1:22:00]} 11. Bxg4 {[%clk 1:16:27]} 11... Bxg4
{[%clk 1:22:22]} 12. Bh6 {[%clk 1:16:27]} 12... O-O {[%clk 1:17:31]} 13. f3
{[%clk 1:07:26]} 13... Be6 {[%clk 1:16:18]} 14. h4 {[%clk 1:06:17]} 14... Qa5
{[%clk 1:09:39]} 15. Bxg7 {[%clk 1:05:57]} 15... Kxg7 {[%clk 1:09:49]} 16. h5
{[%clk 1:06:06]} 16... g5 {[%clk 1:08:43]} 17. h6+ {[%clk 0:58:51]} 17... Kh8
{[%clk 1:08:23]} 18. O-O-O {[%clk 0:55:45]} 18... f6 {[%clk 1:05:35]} 19. Ne2
{[%clk 0:43:43]} 19... Qxd2+ {[%clk 1:03:12]} 20. Rxd2 {[%clk 0:43:45]} 20...
Kg8 {[%clk 1:01:41]} 21. Nd4 {[%clk 0:40:28]} 21... Bd7 {[%clk 1:00:36]} 22. Nf5
{[%clk 0:39:41]} 22... Kf7 {[%clk 1:00:13]} 23. g4 {[%clk 0:39:16]} 23... Rab8
{[%clk 0:58:42]} 24. Ne3 {[%clk 0:38:22]} 24... Be6 {[%clk 0:57:57]} 25. Rhh2
{[%clk 0:37:25]} 25... Rb5 {[%clk 0:58:11]} 26. c3 {[%clk 0:37:40]} 26... Re5
{[%clk 0:55:40]} 27. c4 {[%clk 0:33:41]} 27... Rb8 {[%clk 0:55:20]} 28. Kc2
{[%clk 0:32:59]} 28... Bxc4 {[%clk 0:33:40]} 29. Nxc4 {[%clk 0:33:07]} 29... Rc5
{[%clk 0:33:58]} 30. Kc3 {[%clk 0:30:35]} 30... d5 {[%clk 0:34:08]} 31. b3
{[%clk 0:31:01]} 31... dxc4 {[%clk 0:32:44]} 32. b4 {[%clk 0:31:25]} 32... Rcb5
{[%clk 0:33:07]} 33. Rb2 {[%clk 0:27:36]} 33... Ke6 {[%clk 0:31:01]} 34. a4
{[%clk 0:24:59]} 34... R5b7 {[%clk 0:31:26]} 35. Kxc4 {[%clk 0:25:11]} 35... Ke5
{[%clk 0:31:46]} 36. Rb3 {[%clk 0:23:43]} 36... Kf4 {[%clk 0:31:29]} 37. Rhb2
{[%clk 0:23:15]} 37... Rd7 {[%clk 0:31:25]} 38. Kc5 {[%clk 0:23:17]} 38... Ke5
{[%clk 0:31:13]} 39. Rc2 {[%clk 0:22:38]} 39... a5 {[%clk 0:20:54]} 40. Rcc3
{[%clk 0:47:19]} 40... Rdb7 {[%clk 0:45:19]} 41. Rc4 {[%clk 0:45:42]} 41... Rd7
{[%clk 0:39:20]} 42. Rcc3 {[%clk 0:44:37]} 42... Rdb7 {[%clk 0:30:00]} 43. Rc4
{[%clk 0:42:01]} 43... Ra7 {[%clk 0:28:14]} 44. Kxc6 {[%clk 0:34:32]} 44... axb4
{[%clk 0:20:36]} 45. Rbxb4 {[%clk 0:26:54]} 45... Rba8 {[%clk 0:10:08]} 46. Rb7
{[%clk 0:26:27]} 46... Ra6+ {[%clk 0:09:15]} 47. Kd7 {[%clk 0:26:32]} 47... Kf4
{[%clk 0:07:23]} 48. e5+ {[%clk 0:21:20]} 48... Kxf3 {[%clk 0:07:35]} 49. e6
{[%clk 0:21:24]} 49... R8a7 {[%clk 0:07:19]} 50. Rxa7 {[%clk 0:21:29]} 50...
Rxa7+ {[%clk 0:07:46]} 51. Ke8 {[%clk 0:21:54]} 51... f5 {[%clk 0:07:48]} 52.
gxf5 {[%clk 0:22:12]} 52... g4 {[%clk 0:08:14]} 53. Kf7 {[%clk 0:20:48]} 53...
g3 {[%clk 0:08:40]} 54. f6 {[%clk 0:18:38]} 54... exf6+ {[%clk 0:09:06]} 55. e7
{[%clk 0:19:06]} 55... g2 {[%clk 0:09:24]} 56. Rc1 {[%clk 0:19:33]} 56... f5
{[%clk 0:09:19]} 57. Kf8 {[%clk 0:19:48]} 57... Ra8+ {[%clk 0:09:19]} 58. e8=Q
{[%clk 0:20:11]} 58... Rxe8+ {[%clk 0:09:47]} 59. Kxe8 {[%clk 0:20:34]} 59... f4
{[%clk 0:10:07]} 60. a5 {[%clk 0:21:00]} 60... Kf2 {[%clk 0:10:34]} 61. a6
{[%clk 0:21:25]} 1-0

[Variant "Standard"]
[Site "Europe Echecs"]

[Event "Sunway Sitges Chess Festival"]
[Date "2024.12.21"]
[White "Filgueiras, Nathan Felipe"]
[Black "Ilamparthi A R"]
[WhiteElo "2328"]
[BlackElo "2391"]
[Round "3.7"]
[Result "1/2-1/2"]
[TimeControl "40/5400+30:1800+30"]

1. e4 {[%clk 1:30:19]} 1... e5 {[%clk 1:30:53]} 2. Nf3 {[%clk 1:30:32]} 2... Nc6
{[%clk 1:31:20]} 3. Nc3 {[%clk 1:30:36]} 3... Nf6 {[%clk 1:31:32]} 4. h3 {[%clk
1:30:47]} 4... g6 {[%clk 1:27:53]} 5. d4 {[%clk 1:19:06]} 5... exd4 {[%clk
1:28:13]} 6. Nxd4 {[%clk 1:19:31]} 6... Bg7 {[%clk 1:28:35]} 7. Nxc6 {[%clk
1:18:44]} 7... bxc6 {[%clk 1:29:01]} 8. Bc4 {[%clk 1:14:15]} 8... O-O {[%clk
1:28:52]} 9. O-O {[%clk 1:14:36]} 9... Re8 {[%clk 1:26:22]} 10. Re1 {[%clk
1:12:26]} 10... d5 {[%clk 1:17:09]} 11. Bg5 {[%clk 0:55:00]} 11... dxc4 {[%clk
1:09:39]} 12. Qxd8 {[%clk 0:54:59]} 12... Rxd8 {[%clk 1:10:07]} 13. e5 {[%clk
0:55:20]} 13... Bf5 {[%clk 1:10:26]} 14. exf6 {[%clk 0:46:21]} 14... Bf8 {[%clk
1:10:49]} 15. Re2 {[%clk 0:46:30]} 15... Rd7 {[%clk 1:04:32]} 16. g4 {[%clk
0:39:13]} 16... Be6 {[%clk 1:04:28]} 17. Be3 {[%clk 0:39:09]} 17... a6 {[%clk
1:02:09]} 18. Kg2 {[%clk 0:36:34]} 18... h6 {[%clk 0:57:04]} 19. f4 {[%clk
0:33:58]} 19... Kh7 {[%clk 0:51:52]} 20. Kg3 {[%clk 0:33:07]} 20... Bd6 {[%clk
0:48:18]} 21. Ne4 {[%clk 0:27:08]} 21... g5 {[%clk 0:43:51]} 22. Nxd6 {[%clk
0:22:11]} 22... gxf4+ {[%clk 0:44:08]} 23. Bxf4 {[%clk 0:22:33]} 23... cxd6
{[%clk 0:44:22]} 24. Rd1 {[%clk 0:20:48]} 24... Rad8 {[%clk 0:43:41]} 25. c3
{[%clk 0:19:39]} 25... Kg6 {[%clk 0:42:33]} 26. Red2 {[%clk 0:19:11]} 26... Bd5
{[%clk 0:40:07]} 27. Re1 {[%clk 0:18:25]} 27... Be6 {[%clk 0:31:41]} 28. Red1
{[%clk 0:17:47]} 28... Bd5 {[%clk 0:31:50]} 29. Re1 {[%clk 0:17:07]} 29... Be6
{[%clk 0:30:10]} 30. Red1 {[%clk 0:16:04]} 30... Bd5 {[%clk 0:30:24]} 1/2-1/2

[Variant "Standard"]
[Site "Europe Echecs"]

[Event "Sunway Sitges Chess Festival"]
[Date "2024.12.21"]
[White "Karimov, Alisher"]
[Black "Raczek, Krzysztof"]
[WhiteElo "2296"]
[BlackElo "2443"]
[Round "3.8"]
[Result "1/2-1/2"]
[TimeControl "40/5400+30:1800+30"]

1. d4 {[%clk 1:25:38]} 1... Nf6 {[%clk 1:30:19]} 2. c4 {[%clk 1:25:58]} 2... e6
{[%clk 1:29:54]} 3. Nc3 {[%clk 1:25:45]} 3... Bb4 {[%clk 1:28:43]} 4. e3 {[%clk
1:26:05]} 4... O-O {[%clk 1:28:59]} 5. Bd3 {[%clk 1:26:27]} 5... d5 {[%clk
1:29:22]} 6. a3 {[%clk 1:26:44]} 6... dxc4 {[%clk 1:29:46]} 7. Bxc4 {[%clk
1:27:08]} 7... Be7 {[%clk 1:29:26]} 8. Nf3 {[%clk 1:23:39]} 8... c5 {[%clk
1:29:21]} 9. dxc5 {[%clk 1:22:58]} 9... Qxd1+ {[%clk 1:28:43]} 10. Nxd1 {[%clk
1:21:49]} 10... Bxc5 {[%clk 1:28:04]} 11. b4 {[%clk 1:22:01]} 11... Be7 {[%clk
1:28:01]} 12. Bb2 {[%clk 1:15:22]} 12... Bd7 {[%clk 1:18:15]} 13. O-O {[%clk
1:18:07]} 13... Rc8 {[%clk 1:18:41]} 14. Rc1 {[%clk 1:14:58]} 14... Be8 {[%clk
1:16:25]} 15. Nd2 {[%clk 0:48:43]} 15... Nbd7 {[%clk 1:03:34]} 16. Nc3 {[%clk
0:45:51]} 16... Ne5 {[%clk 0:51:30]} 17. Be2 {[%clk 0:41:07]} 17... Rd8 {[%clk
0:51:19]} 18. Nce4 {[%clk 0:23:44]} 18... Nxe4 {[%clk 0:43:22]} 19. Nxe4 {[%clk
0:24:07]} 19... Nd3 {[%clk 0:39:08]} 20. Rc7 {[%clk 0:20:31]} 20... Nxb2 {[%clk
0:34:18]} 21. Rxe7 {[%clk 0:20:43]} 21... Kf8 {[%clk 0:29:04]} 22. Rc7 {[%clk
0:20:38]} 22... h6 {[%clk 0:24:31]} 23. Rb1 {[%clk 0:19:29]} 23... Na4 {[%clk
0:24:15]} 24. Bf3 {[%clk 0:18:33]} 24... Bc6 {[%clk 0:21:54]} 25. b5 {[%clk
0:15:41]} 25... Bd5 {[%clk 0:21:30]} 26. Rbc1 {[%clk 0:12:35]} 26... a6 {[%clk
0:18:33]} 27. bxa6 {[%clk 0:11:49]} 27... Rxa6 {[%clk 0:18:42]} 28. h3 {[%clk
0:11:06]} 28... Rb6 {[%clk 0:14:30]} 29. Nd2 {[%clk 0:05:50]} 29... Rc6 {[%clk
0:10:46]} 30. R1xc6 {[%clk 0:03:52]} 30... bxc6 {[%clk 0:10:05]} 31. Bxd5 {[%clk
0:02:03]} 31... Rxd5 {[%clk 0:08:15]} 32. Nc4 {[%clk 0:02:20]} 32... c5 {[%clk
0:07:20]} 1/2-1/2

[Variant "Standard"]
[Site "Europe Echecs"]

[Event "Sunway Sitges Chess Festival"]
[Date "2024.12.21"]
[White "Lomaia, Diana"]
[Black "Ivanchuk, Vasyl"]
[WhiteElo "2047"]
[BlackElo "2630"]
[Round "3.9"]
[Result "0-1"]
[TimeControl "40/5400+30:1800+30"]

1. d4 {[%clk 1:30:57]} 1... e6 {[%clk 1:30:53]} 2. c4 {[%clk 1:31:22]} 2... Nf6
{[%clk 1:31:19]} 3. Nc3 {[%clk 1:31:47]} 3... Bb4 {[%clk 1:31:46]} 4. Nf3 {[%clk
1:32:02]} 4... c5 {[%clk 1:31:37]} 5. g3 {[%clk 1:31:55]} 5... Nc6 {[%clk
1:32:01]} 6. Bg2 {[%clk 1:31:27]} 6... Ne4 {[%clk 1:32:24]} 7. Bd2 {[%clk
1:29:53]} 7... Nxd2 {[%clk 1:32:35]} 8. Qxd2 {[%clk 1:30:14]} 8... cxd4 {[%clk
1:33:02]} 9. Nxd4 {[%clk 1:30:35]} 9... O-O {[%clk 1:33:29]} 10. O-O {[%clk
1:29:03]} 10... Ne5 {[%clk 1:33:31]} 11. b3 {[%clk 1:27:35]} 11... a6 {[%clk
1:33:56]} 12. Rac1 {[%clk 1:26:15]} 12... Be7 {[%clk 1:31:49]} 13. Rfd1 {[%clk
1:24:30]} 13... d6 {[%clk 1:31:29]} 14. e3 {[%clk 1:18:04]} 14... Qc7 {[%clk
1:28:49]} 15. Nce2 {[%clk 1:12:25]} 15... Bd7 {[%clk 1:21:26]} 16. Rc2 {[%clk
1:09:31]} 16... Rac8 {[%clk 1:20:03]} 17. Nf4 {[%clk 1:05:27]} 17... Qb8 {[%clk
1:17:18]} 18. a4 {[%clk 0:58:44]} 18... Ng4 {[%clk 1:11:28]} 19. a5 {[%clk
0:57:17]} 19... Nf6 {[%clk 1:11:49]} 20. Nde2 {[%clk 0:53:57]} 20... Bc6 {[%clk
1:06:29]} 21. Bxc6 {[%clk 0:51:58]} 21... bxc6 {[%clk 1:06:51]} 22. b4 {[%clk
0:44:53]} 22... d5 {[%clk 1:03:44]} 23. c5 {[%clk 0:41:36]} 23... e5 {[%clk
0:55:02]} 24. Nd3 {[%clk 0:39:54]} 24... Ne4 {[%clk 0:55:09]} 25. Qc1 {[%clk
0:39:36]} 25... Ng5 {[%clk 0:55:02]} 26. Qb2 {[%clk 0:38:55]} 26... Bf6 {[%clk
0:51:11]} 27. Qb3 {[%clk 0:37:39]} 27... Rc7 {[%clk 0:50:34]} 28. h4 {[%clk
0:32:08]} 28... Nf3+ {[%clk 0:45:50]} 29. Kg2 {[%clk 0:31:50]} 29... e4 {[%clk
0:46:19]} 30. Ne1 {[%clk 0:25:22]} 30... Ne5 {[%clk 0:38:04]} 31. Nd4 {[%clk
0:23:20]} 31... Qc8 {[%clk 0:37:47]} 32. f3 {[%clk 0:20:56]} 32... Re8 {[%clk
0:32:09]} 33. Re2 {[%clk 0:08:29]} 33... exf3+ {[%clk 0:27:00]} 34. Nexf3 {[%clk
0:08:26]} 34... Qg4 {[%clk 0:27:09]} 35. Rde1 {[%clk 0:01:50]} 35... h5 {[%clk
0:23:59]} 36. e4 {[%clk 0:00:49]} 36... Nxf3 {[%clk 0:23:46]} 37. Nxf3 {[%clk
0:01:00]} 37... dxe4 {[%clk 0:23:48]} 38. Nd2 {[%clk 0:00:46]} 38... Rce7 {[%clk
0:23:41]} 39. Kh2 {[%clk 0:00:40]} 39... Bxh4 {[%clk 0:04:21]} 40. gxh4 {[%clk
0:30:41]} 40... e3 {[%clk 0:34:50]} 41. Nf1 {[%clk 0:27:19]} 41... Qxh4+ {[%clk
0:29:05]} 42. Kg2 {[%clk 0:22:16]} 42... Re5 {[%clk 0:21:38]} 43. Ng3 {[%clk
0:16:33]} 43... Rg5 {[%clk 0:21:47]} 44. Rxe3 {[%clk 0:15:43]} 44... Rxg3+
{[%clk 0:22:05]} 45. Rxg3 {[%clk 0:14:22]} 45... Rxe1 {[%clk 0:22:28]} 0-1

[Variant "Standard"]
[Site "Europe Echecs"]

[Event "Sunway Sitges Chess Festival"]
[Date "2024.12.21"]
[White "Tin, Jingyao"]
[Black "Abergel, Thal"]
[WhiteElo "2480"]
[BlackElo "2411"]
[Round "4.1"]
[Result "1/2-1/2"]
[TimeControl "40/5400+30:1800+30"]

1. d4 {[%clk 1:29:54]} 1... d5 {[%clk 1:30:49]} 2. c4 {[%clk 1:30:17]} 2... e6
{[%clk 1:31:11]} 3. Nf3 {[%clk 1:30:11]} 3... Nf6 {[%clk 1:31:15]} 4. g3 {[%clk
1:30:18]} 4... Be7 {[%clk 1:31:33]} 5. Bg2 {[%clk 1:30:39]} 5... O-O {[%clk
1:31:50]} 6. O-O {[%clk 1:30:46]} 6... c6 {[%clk 1:31:58]} 7. Qc2 {[%clk
1:30:55]} 7... b6 {[%clk 1:32:05]} 8. Rd1 {[%clk 1:31:13]} 8... Bb7 {[%clk
1:23:07]} 9. b3 {[%clk 1:30:46]} 9... Na6 {[%clk 1:21:24]} 10. Nc3 {[%clk
1:27:52]} 10... c5 {[%clk 1:19:28]} 11. dxc5 {[%clk 1:06:29]} 11... bxc5 {[%clk
1:19:24]} 12. cxd5 {[%clk 1:06:10]} 12... exd5 {[%clk 1:18:02]} 13. Nh4 {[%clk
0:58:49]} 13... Nb4 {[%clk 1:13:00]} 14. Qb1 {[%clk 0:41:09]} 14... Re8 {[%clk
1:05:23]} 15. Nf5 {[%clk 0:39:04]} 15... Bf8 {[%clk 1:00:43]} 16. a3 {[%clk
0:37:40]} 16... Na6 {[%clk 0:59:36]} 17. Bg5 {[%clk 0:36:51]} 17... Nc7 {[%clk
0:56:59]} 18. Ne3 {[%clk 0:34:36]} 18... h6 {[%clk 0:53:08]} 19. Bxf6 {[%clk
0:33:42]} 19... Qxf6 {[%clk 0:53:33]} 20. Ncxd5 {[%clk 0:33:42]} 20... Nxd5
{[%clk 0:51:29]} 21. Bxd5 {[%clk 0:33:26]} 21... Rab8 {[%clk 0:51:00]} 22. Bxb7
{[%clk 0:25:30]} 22... Rxb7 {[%clk 0:51:12]} 23. Qc2 {[%clk 0:25:47]} 23... h5
{[%clk 0:49:07]} 24. Rab1 {[%clk 0:24:20]} 24... h4 {[%clk 0:48:28]} 25. Rd5
{[%clk 0:22:04]} 25... Rbe7 {[%clk 0:38:51]} 26. Rbd1 {[%clk 0:12:23]} 26... Re4
{[%clk 0:36:32]} 27. Rf5 {[%clk 0:09:23]} 27... Qc6 {[%clk 0:29:36]} 28. Rf3
{[%clk 0:08:38]} 28... g6 {[%clk 0:24:49]} 29. gxh4 {[%clk 0:07:32]} 29... Rxh4
{[%clk 0:22:44]} 30. Nd5 {[%clk 0:04:07]} 30... Bg7 {[%clk 0:21:28]} 31. h3
{[%clk 0:04:17]} 31... c4 {[%clk 0:12:42]} 32. bxc4 {[%clk 0:02:57]} 32... Rxc4
{[%clk 0:13:04]} 33. Qb3 {[%clk 0:03:16]} 33... Be5 {[%clk 0:08:16]} 34. Rxf7
{[%clk 0:01:35]} 34... Kxf7 {[%clk 0:05:50]} 35. Ne3 {[%clk 0:02:01]} 35... Rc8
{[%clk 0:05:52]} 36. Nxc4 {[%clk 0:00:33]} 36... Qxc4 {[%clk 0:06:06]} 37. Rd7+
{[%clk 0:00:57]} 37... Ke6 {[%clk 0:05:02]} 38. Qxc4+ {[%clk 0:01:15]} 38...
Rxc4 {[%clk 0:05:26]} 39. Rxa7 {[%clk 0:01:42]} 39... Rc2 {[%clk 0:05:01]} 40.
Kf1 {[%clk 0:30:58]} 40... Ra2 {[%clk 0:33:33]} 41. Ra8 {[%clk 0:30:30]} 41...
Bd6 {[%clk 0:31:36]} 42. a4 {[%clk 0:30:21]} 42... Bb4 {[%clk 0:31:43]} 43. Ra6+
{[%clk 0:30:05]} 43... Kf5 {[%clk 0:31:18]} 44. Ra8 {[%clk 0:29:39]} 44... Kf6
{[%clk 0:30:51]} 1/2-1/2

[Variant "Standard"]
[Site "Europe Echecs"]

[Event "Sunway Sitges Chess Festival"]
[Date "2024.12.21"]
[White "Xu, Minghui"]
[Black "Maurizzi, Marc`Andria"]
[WhiteElo "2405"]
[BlackElo "2477"]
[Round "4.2"]
[Result "1/2-1/2"]
[TimeControl "40/5400+30:1800+30"]

1. d4 {[%clk 1:30:49]} 1... e6 {[%clk 1:30:13]} 2. Nf3 {[%clk 1:24:00]} 2... Nf6
{[%clk 1:28:18]} 3. Bf4 {[%clk 1:21:57]} 3... d5 {[%clk 1:27:10]} 4. e3 {[%clk
1:22:02]} 4... c5 {[%clk 1:27:32]} 5. Nbd2 {[%clk 1:21:45]} 5... Qb6 {[%clk
1:27:10]} 6. Rb1 {[%clk 1:21:28]} 6... Bd7 {[%clk 1:27:36]} 7. dxc5 {[%clk
1:11:15]} 7... Bxc5 {[%clk 1:24:20]} 8. b4 {[%clk 1:10:23]} 8... Be7 {[%clk
1:20:40]} 9. b5 {[%clk 1:10:04]} 9... O-O {[%clk 1:14:42]} 10. Bd3 {[%clk
1:07:47]} 10... Rd8 {[%clk 1:10:07]} 11. Qe2 {[%clk 1:06:01]} 11... Be8 {[%clk
1:08:09]} 12. e4 {[%clk 0:50:56]} 12... dxe4 {[%clk 1:06:01]} 13. Nxe4 {[%clk
0:48:31]} 13... Nbd7 {[%clk 0:53:55]} 14. O-O {[%clk 0:47:35]} 14... Rac8 {[%clk
0:49:42]} 15. Nxf6+ {[%clk 0:43:22]} 15... Bxf6 {[%clk 0:48:03]} 16. c4 {[%clk
0:43:25]} 16... Nc5 {[%clk 0:45:05]} 17. Bc2 {[%clk 0:43:05]} 17... Rd7 {[%clk
0:37:34]} 18. h4 {[%clk 0:28:48]} 18... Rcd8 {[%clk 0:34:45]} 19. Rbd1 {[%clk
0:22:15]} 19... Be7 {[%clk 0:26:52]} 20. h5 {[%clk 0:16:44]} 20... f6 {[%clk
0:19:55]} 21. g4 {[%clk 0:12:28]} 21... Bf7 {[%clk 0:16:58]} 22. Be3 {[%clk
0:09:31]} 22... Qc7 {[%clk 0:16:20]} 23. Rxd7 {[%clk 0:07:22]} 23... Rxd7 {[%clk
0:16:12]} 24. Kg2 {[%clk 0:06:43]} 24... e5 {[%clk 0:11:23]} 25. Bf5 {[%clk
0:03:46]} 25... Rd8 {[%clk 0:06:42]} 26. Qc2 {[%clk 0:02:47]} 26... e4 {[%clk
0:07:11]} 27. Bxe4 {[%clk 0:02:38]} 27... Nxe4 {[%clk 0:07:00]} 28. Qxe4 {[%clk
0:03:07]} 28... Qxc4 {[%clk 0:06:35]} 29. Qxc4 {[%clk 0:02:28]} 29... Bxc4
{[%clk 0:07:04]} 30. Rc1 {[%clk 0:02:52]} 30... Bxb5 {[%clk 0:02:39]} 31. Nd4
{[%clk 0:03:08]} 31... Bd7 {[%clk 0:02:44]} 32. Rc7 {[%clk 0:02:51]} 32... Bd6
{[%clk 0:01:28]} 33. Rxb7 {[%clk 0:03:19]} 33... Bxg4 {[%clk 0:01:51]} 34. Rxa7
{[%clk 0:01:23]} 34... Rd7 {[%clk 0:01:07]} 35. Ra5 {[%clk 0:00:42]} 35... Bc7
{[%clk 0:00:36]} 36. Rb5 {[%clk 0:00:44]} 36... Re7 {[%clk 0:00:33]} 37. a4
{[%clk 0:00:36]} 37... Bd7 {[%clk 0:00:42]} 38. Rb4 {[%clk 0:00:34]} 38... h6
{[%clk 0:01:04]} 39. Rc4 {[%clk 0:00:42]} 39... Be8 {[%clk 0:00:39]} 40. Nc6
{[%clk 0:30:34]} 40... Re6 {[%clk 0:30:37]} 41. Nd4 {[%clk 0:30:19]} 41... Re7
{[%clk 0:31:03]} 42. Nc6 {[%clk 0:28:34]} 42... Rd7 {[%clk 0:30:41]} 43. a5
{[%clk 0:28:21]} 43... Bf7 {[%clk 0:30:51]} 44. Rc5 {[%clk 0:28:10]} 44... Bd6
{[%clk 0:30:03]} 45. Rc1 {[%clk 0:22:46]} 45... Rc7 {[%clk 0:28:58]} 46. Nd4
{[%clk 0:21:33]} 46... Rxc1 {[%clk 0:25:33]} 47. Bxc1 {[%clk 0:21:49]} 47... Bc4
{[%clk 0:24:13]} 48. Bd2 {[%clk 0:19:57]} 48... Kf7 {[%clk 0:22:31]} 49. Kf3
{[%clk 0:19:23]} 49... Ke8 {[%clk 0:20:52]} 50. Bf4 {[%clk 0:15:38]} 50... Bf8
{[%clk 0:19:55]} 51. a6 {[%clk 0:12:46]} 51... Bxa6 {[%clk 0:13:41]} 52. Ne6
{[%clk 0:13:09]} 52... Bb7+ {[%clk 0:13:16]} 53. Kg3 {[%clk 0:13:30]} 53... Bc8
{[%clk 0:12:59]} 54. Nxf8 {[%clk 0:13:54]} 54... Kxf8 {[%clk 0:13:24]} 55. Bd6+
{[%clk 0:14:08]} 55... Kf7 {[%clk 0:13:53]} 56. Kh4 {[%clk 0:14:17]} 56... Bd7
{[%clk 0:14:20]} 57. Bc5 {[%clk 0:14:42]} 57... Bc8 {[%clk 0:14:47]} 58. Bd6
{[%clk 0:15:08]} 58... Bd7 {[%clk 0:15:15]} 59. Bc5 {[%clk 0:15:34]} 1/2-1/2

[Variant "Standard"]
[Site "Europe Echecs"]